Cogmind - Beta 16.1 @@@ ROGUE MODE // 2026.04.07 @ 18:20:44 Player: dorusv Result: Destroyed by S-10 Pest with Light Assault Rifle Performance ------------- Evolutions (1) 500 Regions Visited (3) 600 Robots Destroyed (25) 125 Value Destroyed (740) 740 Prototype IDs (4) 80 Alien Tech Used (0) 0 Bonus (0) 0 TOTAL SCORE: 2045 Bonus ------- None Cogmind --------- Core Integrity 0/400 Matter 290/300 Energy 44/100 System Corruption 5% Temperature Cool (0) Movement Core (50) Location -9/Storage Parts ------- > --- POWER (2) -------- (None) > --- PROPULSION (2) --- (None) > --- UTILITY (3) ------ Visual Processing Unit > --- WEAPON (2) ------- Mining Claw > --- INVENTORY (5) ---- Hover Unit Hover Unit Peak State ------------ > --- POWER ------------ Improved Ion Engine Improved Ion Engine > --- PROPULSION ------- Light Treads Light Treads > --- UTILITY ---------- Visual Processing Unit Light Armor Plating Medium Armor Plating > --- WEAPON ----------- EM Shotgun Beam Rifle > --- INVENTORY -------- Hover Unit Hover Unit Light Armor Plating EM Pulse Gun EM Shotgun [Rating: 15] Favorites ----------- Power Improved Ion Engine Engine Improved Ion Engine Propulsion Light Treads Treads Light Treads Wheel Wheel Utility Visual Processing Unit Device Improved Terrain Scanner Storage Small Battery Processor Visual Processing Unit Protection Light Armor Plating Weapon Medium Laser Energy Gun Medium Laser Ballistic Gun Assault Rifle Slashing Weapon Mining Claw Build | -11 -10 -9 -9 ------- Run | Yrd Mat Mat Sto Slots Evolved 2 | . . 2 . Power 1 | . . 1 . Propulsion . | . . . . Utility 1 | . . 1 . Weapon . | . . . . Parts Attached 25 | 7 1 3 14 Power 6 | 1 1 1 3 Engine 6 | 1 1 1 3 Core . | . . . . Reactor . | . . . . Propulsion 4 | 2 . . 2 Treads 2 | . . . 2 Leg . | . . . . Wheel 2 | 2 . . . Hover . | . . . . Flight . | . . . . Utility 7 | 2 . 2 3 Device 2 | 2 . . . Storage 1 | . . 1 . Processor 1 | . . 1 . Hackware . | . . . . Protection 3 | . . . 3 Artifact . | . . . . Weapon 8 | 2 . . 6 Energy Gun 6 | 1 . . 5 Energy Cannon . | . . . . Ballistic Gun 1 | 1 . . . Ballistic Cannon . | . . . . Launcher . | . . . . Special Weapon . | . . . . Impact Weapon . | . . . . Slashing Weapon 1 | . . . 1 Piercing Weapon . | . . . . Special Melee Weapon . | . . . . Unidentified Prototypes . | . . . . Corrupted Parts 1 | . . . 1 System Corruption 5 | . . . 5 Parts Lost 22 | . 1 1 20 Power 5 | . 1 . 4 Propulsion 4 | . . . 4 Utility 6 | . . 1 5 Weapon 7 | . . . 7 Highest Loss Streak 8 | . 1 1 8 To Critical Strikes 1 | . . . 1 Average Backups 2 | 1 1 1 3 Power . | . . . . Propulsion 1 | . . . 2 Utility . | . . . . Weapon 1 | . 1 1 1 Tool/Special . | . . . . Unused Backups 2 | . . . 2 Power . | . . . . Propulsion 2 | . . . 2 Utility . | . . . . Weapon . | . . . . Tool/Special . | . . . . Average Slot Usage (%) 83 | . 100 81 82 Engine 17 | . 14 15 17 Treads 9 | . . . 13 Wheel 10 | . 28 22 5 Device 7 | . 28 16 3 Storage 2 | . . 1 3 Processor 8 | . . 4 11 Protection 7 | . . . 9 Energy Gun 15 | . 14 11 17 Ballistic Gun 4 | . 14 11 1 Peak Build Rating 15 | 9 9 12 15 Average Rating 10 | 7 8 9 11 On Entrance 7 | . 9 9 12 Avg Prop Armor Cover (%) 8 | . . . 8 Naked Turns . | . . . . Heaviest Build 29 | 9 11 14 29 Greatest Support 40 | 26 26 26 40 Greatest Overweight (x) 6 | . . . 6 Average Overweight (x) . | . . . . Largest Inventory Capacity 5 | 5 5 5 5 Average Capacity 5 | 5 5 5 5 Most Carried 5 | 2 2 3 5 Average Carried 2 | 1 1 1 3 Final Capacity 5 | 5 5 5 5 Final Carried 3 | 2 1 3 2 Class Distribution -------------------- 60% | Mutant 39% | Scavenger-Mutant Dominant Class ---------------- Mutant | -10/Materials Mutant | -9/Materials Scavenger-Mutant | -9/Storage Resources | -11 -10 -9 -9 ----------- Run | Yrd Mat Mat Sto Matter Collected 589 | 324 . 38 227 Remotely . | . . . . Salvage Created 1050 | 141 . 86 823 Parts 58 | 8 . 5 45 Haulers Intercepted . | . . . . Recyclers Shooed . | . . . . Parts Field Recycled . | . . . . Retrieved Matter . | . . . . Parts Self-Destructed . | . . . . Prevented . | . . . . Parts Restored . | . . . . Kills | -11 -10 -9 -9 ------- Run | Yrd Mat Mat Sto Combat Hostiles Destroyed 18 | . . 1 17 Guns 16 | . . 1 15 Classes Destroyed 7 | 2 . 2 3 Tunneler 3 | 3 . . . Recycler 1 | 1 . . . Watcher 3 | . . 1 2 Swarmer 2 | . . . 2 Grunt 7 | . . . 7 Duelist 1 | . . . 1 Sentry 8 | . . 1 7 Best Kill Streak 4 | 2 . 2 4 Combat Bots Only 4 | . . 1 4 Max Kills in Single Turn 1 | 1 . 1 1 Gunslinging . | . . . . Exploded . | . . . . Melee . | . . . . Uniques/NPCs Destroyed . | . . . . Combat | -11 -10 -9 -9 -------- Run | Yrd Mat Mat Sto Hostile Shots Fired 159 | . . 6 153 Missed 39 | . . 2 37 Hits 120 | . . 4 116 Melee 2 | . . . 2 Projectile 118 | . . 4 114 Critical Strikes 3 | . . . 3 Damage Taken 1637 | . 69 65 1503 Core 428 | . 23 31 374 Absorbed by Shields . | . . . . Core Remaining (%) 95 | 100 90 . . Volleys Fired 109 | 18 . 5 86 Largest 2 | 2 . 2 2 Hottest 101 | 70 . 70 101 Shots Fired 149 | 36 . 10 103 Gun 149 | 36 . 10 103 Cannon . | . . . . Launcher . | . . . . Special . | . . . . Kinetic 31 | 18 . 5 8 Thermal 75 | 18 . 5 52 Explosive . | . . . . Electromagnetic 43 | . . . 43 Robot Hit Streak 20 | 6 . 9 20 Robot Miss Streak 3 | 3 . . 2 Penetration Max . | . . . . Secondary Targets . | . . . . Shots Hit Robots 107 | 13 . 8 86 Core Hits 39 | 5 . 3 31 Critical Kills . | . . . . Critical Parts Destroyed . | . . . . Critical Strikes 6 | 2 . 1 3 Burn 6 | 2 . 1 3 Melee Attacks . | . . . . Impact . | . . . . Slashing . | . . . . Piercing . | . . . . Sneak Attacks . | . . . . Combat Hostiles . | . . . . Follow-up Attacks . | . . . . Damage Inflicted 1387 | 157 . 104 1126 Guns 1379 | 157 . 99 1123 Cannons . | . . . . Explosions . | . . . . Melee . | . . . . Ramming 8 | . . 5 3 Kinetic 170 | 70 . 35 65 Thermal 737 | 87 . 64 586 Explosive . | . . . . Electromagnetic 472 | . . . 472 Impact . | . . . . Slashing . | . . . . Piercing . | . . . . Highest Corruption 5 | . . . 5 Average Corruption 5 | . . . 5 Corruption Purged . | . . . . Corruption Blocked . | . . . . Effects 19 | . . . 19 Message Errors 2 | . . . 2 Matter Fused 4 | . . . 4 Heat Flow Errors 1 | . . . 1 Energy Discharges 1 | . . . 1 Parts Rejected 1 | . . . 1 Data Loss (minor) 6 | . . . 6 Data Loss (major) 3 | . . . 3 Misfires 1 | . . . 1 Overload Shots . | . . . . Overflow Damage . | . . . . Projectiles . | . . . . Explosions . | . . . . Melee . | . . . . Knockbacks . | . . . . Impact . | . . . . Kinetic . | . . . . Secondary . | . . . . Self-Inflicted Damage 3 | . . 2 1 Shots . | . . . . Rammed 2 | . . 1 1 Targets Rammed 2 | . . 1 1 Kicked . | . . . . Crushed . | . . . . Highest Temperature 496 | 81 . 18 496 Average Temperature 137 | 26 . 13 174 Received Heat Transfer 549 | . . 18 531 Effects 21 | . . . 21 Shutdowns 7 | . . . 7 Energy Bleed 1 | . . . 1 Interference 3 | . . . 3 Matter Decay 1 | . . . 1 Short Circuit 2 | . . . 2 Damage (minor) 4 | . . . 4 Damage (major) 3 | . . . 3 Siege Activations . | . . . . Martial Activations . | . . . . Shielding Activations . | . . . . Robots Disrupted . | . . . . Combat Hostiles . | . . . . Robots Corrupted 1 | . . . 1 Combat Hostiles 1 | . . . 1 Parts Fried 3 | . . . 3 Impact Corruptions . | . . . . Robots Melted 1 | . . . 1 Combat Hostiles 1 | . . . 1 Parts Melted 7 | . . 1 6 Heat Transferred 2457 | 407 . 259 1791 Parts Sabotaged . | . . . . Parts Stolen . | . . . . Parts Stripped . | . . . . Power Chain Reactions . | . . . . Alert | -11 -10 -9 -9 ------- Run | Yrd Mat Mat Sto Maximum Alert Level . | . . . . Low Security (%) 100 | 100 100 100 100 Level 1 . | . . . . Level 2 . | . . . . Level 3 . | . . . . Level 4 . | . . . . Level 5 . | . . . . High Security . | . . . . Max Security . | . . . . Peak Influence 70 | 5 30 30 70 Initial 3 | . . 3 . Average 11 | . 9 4 17 Influence Increases 599 | 20 38 59 482 Destroy 0b10 Robot/C 360 | . . 20 340 Destroy 0b10 Robot/NC 35 | 20 . 5 10 Destroy Leader 106 | . . 12 94 Successful Hack 23 | . 8 7 8 Partial Spotted 15 | . . 15 . Lose Combat Pursuer 60 | . 30 . 30 Influence Decreases 540 | 20 28 69 423 Entered New Map 7 | . . 7 . Time Decay 359 | 20 18 62 259 Lost Part 174 | . 10 . 164 Squads Dispatched 3 | . 1 . 2 Investigation 2 | . 1 . 1 Extermination . | . . . . Reinforcement 1 | . . . 1 Assault . | . . . . Garrison . | . . . . Intercept . | . . . . Searches Triggered . | . . . . Construction Impeded . | . . . . Haulers Reinforced . | . . . . Active Scanning Responses . | . . . . Cargo Convoy Interrupts . | . . . . Stealth | -11 -10 -9 -9 --------- Run | Yrd Mat Mat Sto Distress Signals . | . . . . Communications Jammed . | . . . . Distress Signals . | . . . . Times Spotted 28 | . 2 3 23 Peak Tracking Total 5 | . 2 2 5 Tactical Retreats 3 | . 1 . 2 Traps | -11 -10 -9 -9 ------- Run | Yrd Mat Mat Sto Traps Triggered 3 | . 2 . 1 Indirectly . | . . . . Trap Hack Attempts . | . . . . Triggered . | . . . . Disarmed . | . . . . Reprogrammed . | . . . . Reused . | . . . . Traps Extracted . | . . . . Installed . | . . . . Triggered . | . . . . Machines | -11 -10 -9 -9 ---------- Run | Yrd Mat Mat Sto Machines Disabled . | . . . . Max in Single Turn . | . . . . Machines Repaired . | . . . . Machines Dismantled . | . . . . Machines Sabotaged . | . . . . Overloaded Fab Kills . | . . . . Hacking | -11 -10 -9 -9 --------- Run | Yrd Mat Mat Sto Machines Accessed 5 | . 1 1 3 Terminals 5 | . 1 1 3 Fabricators . | . . . . Repair Stations . | . . . . Recycling Units . | . . . . Scanalyzers . | . . . . Garrison Access . | . . . . Total Hacks 18 | . 4 2 12 Successful 10 | . 2 1 7 Failed 8 | . 2 1 5 Catastrophic 1 | . . . 1 Database Lockouts . | . . . . Manual . | . . . . Terminals 18 | . 4 2 12 Fabricators . | . . . . Repair Stations . | . . . . Recycling Units . | . . . . Scanalyzers . | . . . . Garrison Access . | . . . . Terminal Hacks 10 | . 2 1 7 Record 1 | . . . 1 Prototype ID Bank 2 | . 1 . 1 Branch Access Points 1 | . . 1 . Dispatch Records 2 | . . . 2 Maintenance Status 1 | . . . 1 Recall Reinforcements 1 | . 1 . . Hauler Manifests 1 | . . . 1 Zone Layout 1 | . . . 1 Fabricator Hacks . | . . . . Repair Station Hacks . | . . . . Recycling Unit Hacks . | . . . . Scanalyzer . | . . . . Garrison Access Hacks . | . . . . Unauthorized Hacks . | . . . . Terminals . | . . . . Fabricators . | . . . . Repair Stations . | . . . . Recycling Units . | . . . . Scanalyzers . | . . . . Garrison Access . | . . . . Data Cores Recovered . | . . . . Used . | . . . . Hacking Detections 5 | . 1 1 3 Full Trace Events 4 | . 1 . 3 Feedback Events . | . . . . Feedback Blocked . | . . . . Robot Schematics Acquired . | . . . . Robots Built . | . . . . Authchips . | . . . . Time . | . . . . Total Robot Build Rating . | . . . . Part Schematics Acquired . | . . . . Parts Built . | . . . . Authchips . | . . . . Time . | . . . . Total Part Build Rating . | . . . . Part Studies Acquired . | . . . . Parts Repaired . | . . . . Time . | . . . . Parts Recycled . | . . . . Recycled Matter . | . . . . Retrieved Matter . | . . . . Retrieved Components . | . . . . Parts Scanalyzed . | . . . . Part Schematics Acquired . | . . . . Parts Damaged . | . . . . Bothacking | -11 -10 -9 -9 ------------ Run | Yrd Mat Mat Sto Used RIF Installer . | . . . . Robots Hacked . | . . . . Non-combat . | . . . . Combat . | . . . . Robot Hacks Applied . | . . . . Relay Couplers Released . | . . . . Fabnet Peak Effective % . | . . . . Robots Rewired . | . . . . Allies Hacked . | . . . . Hacks Repelled . | . . . . Allies | -11 -10 -9 -9 -------- Run | Yrd Mat Mat Sto Total Allies . | . . . . Largest Group . | . . . . Highest-Rated Group . | . . . . Highest-Rated Ally . | . . . . Total Orders . | . . . . Ally Attacks . | . . . . Total Damage . | . . . . Kills . | . . . . Allies Corrupted . | . . . . Allies Melted . | . . . . Intel | -11 -10 -9 -9 ------- Run | Yrd Mat Mat Sto Active Infowar (turns) 1321 | 160 54 288 819 Optics 935 | . . 116 819 Terrain 736 | 160 54 288 234 Seismic 311 | 124 54 133 . Robot Analysis Total . | . . . . Derelict Logs Recovered . | . . . . Drone Launches . | . . . . Drone Recoveries . | . . . . Exploration | -11 -10 -9 -9 ------------- Run | Yrd Mat Mat Sto Turns Passed 1481 | 244 54 288 895 Spaces Moved 989 | 205 59 273 452 Core 49 | 17 . . 32 Treads 272 | . . . 272 Legs . | . . . . Wheels 668 | 188 59 273 148 Hover . | . . . . Flight . | . . . . Fastest Speed 50 | 50 90 90 50 Average Speed 111 | 86 90 90 138 Slowest Speed 350 | 100 90 90 350 Overloaded Moves . | . . . . Propulsion Burnouts . | . . . . Robots Hopped . | . . . . Potential Cave-ins . | . . . . Cave-ins Triggered . | . . . . Exploration Rate (%) 18 | 4 17 13 39 Regions Visited 3 Branch Regions 1 Pre-discovered Areas . | . . . . Known Exits Taken 1 | . . 1 . Unknown Exits Taken 2 | 1 1 . . Scrap Searched . | . . . . Spaces Dug . | . . . . Terrain Destroyed . | . . . . Melee . | . . . . Projectile . | . . . . AOE . | . . . . Terrain Rammed . | . . . . Walls Destroyed . | . . . . Machines Disabled . | . . . . Actions | -11 -10 -9 -9 --------- Run | Yrd Mat Mat Sto Total 1205 | 231 59 303 612 Wait 70 | . . 20 50 Move 986 | 204 58 272 452 Hop . | . . . . Pick Up 6 | 2 . 2 2 Fast Attach 22 | 7 . 3 12 Attach 5 | . 1 . 4 Detach 1 | . . . 1 Swap 2 | . . . 2 Drop 2 | . . . 2 Fire 109 | 18 . 5 86 Melee . | . . . . Ram 2 | . . 1 1 Kick . | . . . . Crush . | . . . . Escape Stasis . | . . . . Rewire . | . . . . Trap . | . . . . Miscellaneous . | . . . . Route ------- -11/Scrapyard -10/Materials -9/Materials (discovered 3 exits: Min / *Sto x2) -9/Storage (discovered 1 exit: [Rec]) History --------- Turn | Location | Event 26 | -11/Scrapyard | Discovered new exit (range 15) 245 | -11/Scrapyard | Entered Materials 279 | -10/Materials | Discovered new exit (range 15) 299 | -10/Materials | Entered another Materials area 299 | -9/Materials | Evolved 2 slots: Power x1, Utility x1 314 | -9/Materials | Build established: Mutant 385 | -9/Materials | Discovered new exit (range 6) 570 | -9/Materials | Identified exit to Mines 570 | -9/Materials | Identified exit to Storage 587 | -9/Materials | Entered Storage 856 | -9/Storage | Lost 7 parts (2p2n2u1w) 984 | -9/Storage | Discovered new exit (range 15) 1141 | -9/Storage | Build established: Scavenger-Mutant 1419 | -9/Storage | Core integrity fell below 50% 1460 | -9/Storage | Core integrity fell below 20% 1482 | -9/Storage | Destroyed by S-10 Pest with Light Assault Rifle Last Messages --------------- 01420_ G-34 Mercenary destroyed. 01420_ Door malfunctions. 01427_ K-01 Serf collects debris. 01441_ Lgt. Treads destroyed. 01444_ System corrupted: EM Shotgun rejected. 01444_ Y-45 Defender misfires. 01444_ Terminal disabled. 01446_ Acquired EM Shotgun. 01451_ Acquired Sml. Laser. 01452_ K-01 Serf collects debris. 01453_ C-30 ARC bursts open, deploying its payload. 01453_ S-10 Pest unfolds itself. 01456_ EM Shotgun destroyed. 01462_ Heat Sink fried. 01462_ Y-45 Defender destroyed. 01464_ S-10 Pest destroyed. 01471_ System corrupted: Substantial component data lost. 01477_ Sml. Laser destroyed. 01478_ Acquired 20 matter. 01480_ Acquired Mining Claw. Map ----- +----------------------------------------------------+ | ???????????# # ## """ ##? | | ???????????# + ############?? | | ???????????# """"" # ############## | | ???????????# """"" # # """"" # | | ???????????# """"" # # ! """"" # | | ???????????# # # % """"" # | | ????????#??# # %+!! # | | ???????????############# # %! ! # | | ??????????### ## ####+######### | | ??????????#"" """ """=#* ### #####???? | | ??????????#"T """ """%+% #???? | | ??????????#"" """ """=#[ #???? | | ??????#???### [ # ###+###+###?? | | ????????????# *##% ## #?? | | ????#???????# =## ## #?? | | ?????#?#????# % ## ## #?? | | ??????#???#?########/### ## #?? | | ????????############ ### / #?# | | ????????# ##%### ## #?? | | ????????# T ## ### ##% #?? | | ????#??## ## ### ## #?? | | ????????# + [=######### ##?? | | ????????# """ """ #% %=%%#????????##??? | | ????????# """ """ # ####s########????#?? | | ????#??# """ """ # ###s%== #??????? | | ???#???## #%#?#*=@ #??????? | | ??#################+### ! #??#???? | | ??# #=%* % # """"#?#????? | | ??# ! + !"""" # """"#????#?? | | ??# ! # "? "" # %[""""#??????? | | ??# # " ??"" # * """"#??#???? | | ??# """ """ # "????" # ##?????? | | ??# """ """ # ??? " ####" "# ##??????? | | ??# """ """ # """" #??#"""###???????? | | ??# # #??#####?????????? | | ??########+#########+######????????????? | | ??? #????????????? | | ??? #????????????? | | ??? #????????????? | | ?????#####+#########+#######???????????? | | ?????????????# #???????????? | | ???? ????????# #???????????? | | ??????????? ?# """ """ #???????????? | | ?????????????# """ """ " " #???????????? | | ?????????????# """ """ "R" #???????????? | | ?????????????# """ #???????????? | | ?????????????###############???????????? | | | | | | | +----------------------------------------------------+ Best States ------------- Heat Dissipation 28 Energy Generation 19 Energy Capacity 430 Matter Stores 300 Matter Capacity 300 Sight Range 18 Terrain Scan Range 16 Terrain Scan Density 10 Armor Coverage 375 Evasion (%) 50 Recoil Reduction 2 Item Schematics ----------------- None Robot Schematics ------------------ None Fabricated ------------ Nothing Repaired ---------- Nothing Studied --------- None Alien Tech Used ----------------- None Achievements -------------- A Problem For Future Me Spot Them First There's More Where That Came From Challenges ------------ None Game ------ Seed DeepChromionFlightbrick Manual? 0 Play Time 00:19:56 Cumulative 16.7 hours Start 2026.04.07 @ 17:57:48 End 2026.04.07 @ 18:20:44 Sessions 2 Manual Loads 0 Difficulty Rogue Special Mode None Game No. 59 Rogue 56 Adventurer 3 Explorer 0 Win Type - Total 0 Types 0/0/0/0/0/0/0/0/0/0 Lore% 15 Gallery% 20 Achievement% 12 Wizard Run 0 Options --------- Layout 0 ASCII 0 Keyboard 1 Movement Arrows Keybinds 0 Fullscreen 1 Font 24/Terminus Map View 183x50 Zoom Use 0% Tactical HUD 1 Map Filters NONE Filters NONE Steam 1 RUN: 4de6c3bf-e067-4f94-9060-b4239df92896